bitfinex/quotes_BTCUSD_20211001
["timestamp","ask_amount","ask_price","bid_price","bid_amount"]
[1633056476562,0.191108,43378.0,43372.0,0.01171884]
[1633056477162,0.191108,43378.0,43372.0,0.24068595]
[1633056477362,0.191108,43378.0,43374.0,0.01603394]
[1633056477564,0.345922,43377.0,43374.0,0.01603394]
[1633056477962,0.345922,43377.0,43374.0,0.03703394]
[1633056478161,0.191108,43376.0,43375.0,0.01200253]
[1633056478961,0.191108,43376.0,43374.0,0.021]
[1633056479364,0.191108,43376.0,43369.0,0.07430478]
[1633056479562,0.08945715,43378.0,43371.0,0.01730805]
[1633056479763,0.191108,43377.0,43368.0,0.0012212]
[1633056479962,0.018,43376.0,43370.0,0.01697754]
[1633056480162,0.018,43376.0,43373.0,0.40255256]
[1633056480363,0.018,43376.0,43374.0,0.01663198]
[1633056481362,0.345902,43379.0,43374.0,0.01663198]
[1633056481563,0.191108,43378.0,43374.0,0.01663198]
[1633056481764,0.191108,43378.0,43368.0,0.1012212]
[1633056481966,0.026,43379.0,43374.0,0.021]
[1633056482164,0.191108,43378.0,43375.0,0.01114808]
[1633056482563,0.191108,43378.0,43374.0,0.021]
[1633056482964,0.537018,43378.0,43374.0,0.021]
[1633056483765,0.537018,43378.0,43374.0,0.101]
[1633056483965,0.37191,43378.0,43374.0,0.101]
[1633056485369,0.34591,43378.0,43374.0,0.08]
[1633056485968,0.37191,43378.0,43374.0,0.101]
[1633056486568,0.191108,43377.0,43374.0,0.101]
[1633056487172,0.026,43378.0,43374.0,0.101]
[1633056487369,0.461244,43379.0,43374.0,0.08]
[1633056487570,0.08039077,43380.0,43374.0,0.08]
[1633056487974,0.026,43379.0,43374.0,0.101]
[1633056489042,0.34592,43377.0,43374.0,0.101]
[1633056489231,0.191108,43376.0,43374.0,0.08]
[1633056489431,0.461261,43378.0,43374.0,0.08]
[1633056489638,0.191108,43377.0,43374.0,0.08]
[1633056489839,0.339168,43377.0,43374.0,0.08]
[1633056490034,0.01984213,43376.0,43374.0,0.099]
[1633056490237,0.191108,43375.0,43374.0,0.099]
[1633056490440,0.21324027,43375.0,43374.0,0.099]
[1633056491238,0.21324027,43375.0,43374.0,0.08]
[1633056491239,0.55917827,43375.0,43374.0,0.08]
[1633056492038,0.59417827,43375.0,43374.0,0.08]
[1633056493639,0.55917827,43375.0,43374.0,0.08]
[1633056493843,0.55917827,43375.0,43374.0,0.30898996]
[1633056493844,0.36807027,43375.0,43374.0,0.30898996]
[1633056494049,0.035,43375.0,43374.0,0.54335443]
[1633056494243,0.035,43375.0,43374.0,0.79687153]
[1633056494445,0.035,43375.0,43374.0,1.243906]
[1633056494645,0.035,43375.0,43374.0,0.898092]
[1633056494845,0.035,43375.0,43374.0,1.20519364]
[1633056495648,0.06306363,43389.0,43375.0,0.035]
[1633056495847,0.9043,43392.0,43379.0,0.02165441]
[1633056496047,0.9043,43392.0,43382.0,0.02046052]
[1633056496246,0.9043,43392.0,43383.0,0.0231]
[1633056496445,0.9043,43392.0,43385.0,0.01532961]
[1633056496648,0.08668745,43394.0,43388.0,0.21331929]
[1633056496847,0.06310646,43395.0,43389.0,0.27813903]
[1633056497446,0.345808,43393.0,43385.0,0.31685635]
[1633056497647,0.345808,43393.0,43386.0,0.01110496]
[1633056498047,0.376808,43393.0,43386.0,0.01110496]
[1633056498246,0.376808,43393.0,43386.0,0.10057011]
[1633056498445,0.376808,43393.0,43387.0,0.01116827]
[1633056498648,0.031,43393.0,43387.0,0.01116827]
[1633056499449,0.06289323,43395.0,43388.0,0.0005301]
[1633056499655,0.06289041,43396.0,43389.0,0.01110761]
[1633056499848,0.191108,43395.0,43389.0,0.01110761]
[1633056500051,0.221108,43395.0,43389.0,0.01110761]
[1633056500256,0.221108,43395.0,43389.0,0.2461601]
[1633056500655,0.221108,43395.0,43390.0,0.01112494]
[1633056500853,0.76560424,43395.0,43389.0,0.23366955]
[1633056501054,0.08387486,43393.0,43388.0,0.018]
[1633056501251,0.08387486,43393.0,43389.0,0.00399539]
[1633056501452,0.345796,43395.0,43389.0,0.00346529]
[1633056502050,0.376796,43395.0,43389.0,0.02046529]
[1633056502252,0.376796,43395.0,43390.0,0.00348099]
[1633056502451,0.47547731,43395.0,43390.0,0.00348099]
[1633056502651,0.191108,43394.0,43389.0,0.017]
[1633056502854,0.12968131,43395.0,43389.0,0.017]
[1633056503153,0.345798,43392.0,43389.0,0.097]
[1633056503351,0.345798,43392.0,43390.0,0.22859288]
[1633056504152,0.378798,43392.0,43390.0,0.24359288]
[1633056504952,0.033,43392.0,43391.0,0.00339912]
[1633056505153,0.224108,43392.0,43390.0,0.24359288]
[1633056505355,0.09868131,43395.0,43390.0,0.22445355]
[1633056505552,0.3458,43393.0,43390.0,0.22445355]
[1633056506151,0.3768,43393.0,43390.0,0.24145355]
[1633056506751,0.191108,43392.0,43390.0,0.24145355]
[1633056507351,0.191108,43392.0,43391.0,0.74963574]
[1633056507553,0.191108,43392.0,43391.0,0.97948605]
[1633056507955,0.191108,43392.0,43391.0,0.74963574]
[1633056508152,0.031,43392.0,43391.0,0.76663574]
[1633056509352,0.08361304,43396.0,43391.0,0.74963574]
[1633056509553,0.191108,43395.0,43391.0,0.74963574]
[1633056510163,0.032,43395.0,43392.0,0.26614429]
[1633056510361,0.032,43395.0,43394.0,1.10963727]
[1633056510556,0.032,43395.0,43394.0,1.36262427]
[1633056510756,0.032,43395.0,43394.0,1.36315437]
[1633056510956,0.032,43395.0,43394.0,0.26315437]
[1633056511155,0.032,43395.0,43394.0,0.70949123]
[1633056511354,0.07836796,43405.0,43394.0,0.70949123]
[1633056511556,0.70065972,43407.0,43399.0,0.2011792]
[1633056511753,0.70065972,43407.0,43400.0,0.28287563]
[1633056511954,0.70065972,43407.0,43401.0,0.00330707]
[1633056512152,0.73065972,43407.0,43401.0,0.00330707]
[1633056513355,0.70065972,43407.0,43401.0,0.00330707]
[1633056514155,0.73265972,43407.0,43401.0,0.01730707]
[1633056514356,0.73265972,43407.0,43402.0,0.00344496]
[1633056514757,0.72765972,43407.0,43402.0,0.00344496]
[1633056515360,0.69565972,43407.0,43402.0,0.00344496]
[1633056515557,0.69565972,43407.0,43403.0,0.02878888]
[1633056515763,0.69565972,43407.0,43404.0,0.27664582]
[1633056515957,0.69565972,43407.0,43405.0,0.00343759]
[1633056516158,0.72365972,43407.0,43405.0,0.00343759]
[1633056516559,0.72365972,43407.0,43406.0,0.2232]
[1633056516860,0.72365972,43407.0,43406.0,0.75179185]
[1633056517459,0.69565972,43407.0,43406.0,0.75179185]
[1633056518059,0.72565972,43407.0,43406.0,0.77379185]
[1633056518262,0.72565972,43407.0,43406.0,1.11936685]
[1633056518862,0.72565972,43407.0,43406.0,0.77379185]
[1633056519262,0.72565972,43407.0,43406.0,0.55059185]
[1633056519470,0.72565972,43407.0,43406.0,0.52859185]
[1633056519471,0.69565972,43407.0,43406.0,0.52859185]
[1633056519663,0.69565972,43407.0,43406.0,0.29219308]
[1633056519865,0.69565972,43407.0,43403.0,0.0231]
[1633056520065,0.69565972,43407.0,43406.0,0.021]
[1633056520066,0.72565972,43407.0,43406.0,0.021]
[1633056521272,0.91802898,43407.0,43406.0,0.021]
[1633056521475,1.06887704,43407.0,43401.0,0.08]
[1633056521667,0.65128099,43402.0,43401.0,0.08]
[1633056521865,0.84238899,43402.0,43401.0,0.08]
[1633056522067,1.02375271,43402.0,43401.0,0.103]
[1633056522265,1.20016129,43402.0,43401.0,0.103]
[1633056522465,0.55016129,43402.0,43401.0,0.103]
[1633056523266,0.89593429,43402.0,43401.0,0.103]
[1633056524067,0.92593429,43402.0,43401.0,0.098]
[1633056524273,0.68791924,43402.0,43401.0,0.098]
[1633056524475,0.23065271,43402.0,43401.0,0.098]
[1633056524670,0.22937172,43402.0,43401.0,0.098]
[1633056525269,0.03826372,43402.0,43401.0,0.098]
[1633056525477,0.00826372,43402.0,43401.0,0.65367264]
[1633056525684,0.70338588,43407.0,43401.0,0.65367264]
[1633056525685,0.69565972,43407.0,43401.0,0.90861088]
[1633056525871,0.69565972,43407.0,43402.0,0.2332461]
[1633056526076,0.69565972,43407.0,43406.0,0.18309581]
[1633056526271,0.69565972,43407.0,43406.0,0.41757257]
[1633056526272,0.69572705,43407.0,43406.0,0.41757257]
[1633056526468,0.69572705,43407.0,43406.0,0.4209574]
[1633056526869,0.69572705,43407.0,43406.0,0.23786159]
[1633056527070,0.69572705,43407.0,43406.0,0.00338483]
[1633056528069,0.72672705,43407.0,43406.0,0.25727183]
[1633056528271,0.72672705,43407.0,43406.0,0.51104027]
[1633056528674,0.72672705,43407.0,43406.0,0.25727183]
[1633056528872,0.72672705,43407.0,43406.0,0.47735123]
[1633056529470,0.69572705,43407.0,43406.0,0.45335123]
[1633056530071,0.71972705,43407.0,43406.0,0.48035123]
[1633056531876,0.71972705,43407.0,43406.0,0.2470794]
[1633056532075,0.72672705,43407.0,43406.0,0.2430794]
[1633056532874,0.72672705,43407.0,43406.0,0.4729664]
[1633056533475,0.69572705,43407.0,43406.0,0.4499664]
[1633056534276,0.71872705,43407.0,43406.0,0.4759664]
[1633056535479,0.69572705,43407.0,43406.0,0.4499664]
[1633056535682,0.69572705,43407.0,43401.0,0.08]
[1633056536080,0.191108,43406.0,43401.0,0.08]
[1633056536282,0.191108,43406.0,43401.0,0.116]
[1633056536483,0.69572705,43407.0,43401.0,0.116]
[1633056537083,0.69572705,43407.0,43402.0,0.00338603]
[1633056537681,0.69572705,43407.0,43403.0,0.229887]
[1633056537880,0.69572705,43407.0,43404.0,0.0033277]
[1633056538279,0.72072705,43407.0,43404.0,0.0033277]
[1633056539085,0.72072705,43407.0,43405.0,0.229887]
[1633056539281,0.72072705,43407.0,43406.0,0.00369658]
[1633056539482,0.69572705,43407.0,43406.0,0.00369658]
[1633056539683,0.69572705,43407.0,43401.0,0.08]
[1633056539951,0.69572705,43407.0,43402.0,0.23320441]
[1633056540081,0.69572705,43407.0,43403.0,0.00335502]
[1633056540282,0.72072705,43407.0,43406.0,0.023]
[1633056540480,0.72072705,43407.0,43406.0,0.01790781]
[1633056540883,0.72072705,43407.0,43406.0,0.02026477]
[1633056541083,0.72072705,43407.0,43406.0,0.01790781]
[1633056541482,0.69572705,43407.0,43401.0,0.08]
[1633056541684,0.69572705,43407.0,43402.0,0.34801993]
[1633056541883,0.69572705,43407.0,43402.0,0.00238493]
[1633056542283,0.69572705,43407.0,43402.0,0.03338493]
[1633056542284,0.71872705,43407.0,43402.0,0.03338493]
[1633056542486,0.71872705,43407.0,43403.0,0.00234207]
[1633056542684,0.08255024,43406.0,43403.0,0.00234207]
[1633056542953,0.71872705,43407.0,43402.0,0.031]
[1633056543488,0.69572705,43407.0,43401.0,0.08]
[1633056543686,0.69572705,43407.0,43402.0,0.00234528]
[1633056543887,0.69572705,43407.0,43403.0,0.229887]
[1633056544086,0.69572705,43407.0,43404.0,0.00341264]
[1633056544288,0.69572705,43407.0,43405.0,0.229887]
[1633056544289,0.71772705,43407.0,43405.0,0.229887]
[1633056544688,0.71772705,43407.0,43404.0,0.00341264]
[1633056544886,0.71772705,43407.0,43402.0,0.032]
[1633056545089,0.71772705,43407.0,43403.0,0.0023095]
[1633056545289,0.71772705,43407.0,43404.0,0.229887]
[1633056545486,0.69572705,43407.0,43405.0,0.00236254]
[1633056546286,0.71972705,43407.0,43405.0,0.02936254]
[1633056546486,0.71972705,43407.0,43406.0,0.0024317]
[1633056547487,0.69572705,43407.0,43406.0,0.0024317]
[1633056548289,0.72772705,43407.0,43406.0,0.0224317]
[1633056549493,0.69572705,43407.0,43406.0,0.0024317]
[1633056550291,0.72772705,43407.0,43406.0,0.0224317]
[1633056551491,0.69572705,43407.0,43406.0,0.0024317]
[1633056552291,0.72772705,43407.0,43406.0,0.0224317]
[1633056552490,0.72772705,43407.0,43406.0,0.02305264]
[1633056552890,0.72772705,43407.0,43406.0,0.25293964]
[1633056553290,0.72772705,43407.0,43406.0,0.47234022]
[1633056553491,0.69572705,43407.0,43406.0,0.45234022]
[1633056553892,0.69572705,43407.0,43406.0,0.21940058]
[1633056554092,0.69572705,43407.0,43404.0,0.230409]
[1633056554293,0.88749705,43407.0,43406.0,0.021]
[1633056554493,0.88749705,43407.0,43406.0,0.02326685]
[1633056554952,0.88749705,43407.0,43406.0,0.021]
[1633056556096,0.85749705,43407.0,43405.0,0.22097172]
[1633056556295,0.88749705,43407.0,43406.0,0.021]
[1633056556895,0.95084721,43407.0,43406.0,0.021]
[1633056557094,0.88749705,43407.0,43406.0,0.021]
[1633056557300,0.95084873,43407.0,43406.0,0.021]
[1633056557497,0.92084873,43407.0,43403.0,0.230429]
[1633056557956,0.85749705,43407.0,43403.0,0.230429]
[1633056558097,0.92086011,43407.0,43403.0,0.230429]
[1633056558296,0.93286011,43407.0,43404.0,0.00222428]
[1633056558496,0.86949705,43407.0,43403.0,0.26065328]
[1633056558696,0.00126499,43406.0,43403.0,0.26065328]
[1633056559101,0.00126499,43406.0,43403.0,0.033]
[1633056559303,1.16457245,43404.0,43403.0,0.033]
[1633056559506,1.55034391,43404.0,43401.0,0.08]
[1633056559702,1.31051016,43402.0,43401.0,0.08]
[1633056559907,1.36144362,43402.0,43401.0,0.08]
[1633056560106,0.21187166,43400.0,43387.0,0.24685669]
[1633056560303,1.19767934,43392.0,43387.0,0.24685669]
[1633056560503,1.19767934,43392.0,43379.0,0.09156052]
[1633056560504,1.54043928,43392.0,43379.0,0.09156052]
[1633056560806,0.49043928,43392.0,43376.0,1.0913]
[1633056561199,0.49043928,43392.0,43377.0,0.230553]
[1633056561403,0.83625028,43392.0,43377.0,0.230553]
[1633056561601,0.97039696,43392.0,43378.0,0.230536]
[1633056561806,0.97039696,43392.0,43389.0,0.24382318]
[1633056561807,0.15165194,43392.0,43389.0,0.24382318]
[1633056562007,0.00604194,43392.0,43383.0,0.24156041]
[1633056562199,0.02904194,43392.0,43391.0,0.97952274]
[1633056562602,0.02904194,43392.0,43391.0,1.19561175]
[1633056562800,0.02904194,43392.0,43391.0,0.96572475]
[1633056563601,0.00604194,43392.0,43391.0,0.96572475]
[1633056564198,0.03004194,43392.0,43391.0,0.96572475]
[1633056564399,0.03004194,43392.0,43391.0,1.27561175]
[1633056564800,0.03004194,43392.0,43391.0,1.04572475]
[1633056565600,0.00604194,43392.0,43391.0,1.04572475]
[1633056566001,0.00604194,43392.0,43391.0,0.96572475]
[1633056566201,0.03404194,43392.0,43391.0,0.96572475]
[1633056566612,0.28365638,43392.0,43391.0,0.74963574]
[1633056566804,0.2810595,43392.0,43391.0,0.74963574]
[1633056567001,0.3310595,43392.0,43391.0,0.74963574]
[1633056567204,0.13524329,43392.0,43391.0,0.74963574]
[1633056567403,0.23524329,43392.0,43391.0,0.74963574]
[1633056567604,0.23524329,43392.0,43391.0,0.94732846]
[1633056568003,0.08524329,43392.0,43391.0,0.94732846]
[1633056568203,0.08395194,43392.0,43391.0,0.94732846]
[1633056569605,0.05595194,43392.0,43391.0,0.94732846]
[1633056570406,0.08595194,43392.0,43391.0,0.94732846]
[1633056571006,0.08515498,43392.0,43391.0,0.94732846]
[1633056571607,0.05515498,43392.0,43391.0,0.94732846]
[1633056572406,0.03604194,43392.0,43391.0,0.94732846]
[1633056572609,0.03732494,43392.0,43391.0,0.74963574]
[1633056573071,0.86042494,43392.0,43391.0,0.67467217]
[1633056573271,0.86042494,43392.0,43375.0,0.035]
[1633056573272,0.75,43391.0,43375.0,0.035]
[1633056573470,0.00124839,43377.0,43375.0,0.035]
[1633056573673,0.02135702,43376.0,43375.0,0.035]
[1633056573868,0.53871558,43376.0,43375.0,0.035]
[1633056574068,0.63544633,43376.0,43375.0,0.035]
[1633056574265,0.90106794,43376.0,43375.0,0.035]
[1633056574466,0.64840422,43376.0,43375.0,0.035]
[1633056574867,0.89763647,43376.0,43375.0,0.035]
[1633056575669,1.10974351,43376.0,43375.0,0.035]
[1633056576268,1.13774351,43376.0,43375.0,0.035]
[1633056576466,0.89363647,43376.0,43375.0,0.035]
[1633056577667,0.86563647,43376.0,43375.0,0.035]
[1633056578273,0.89463647,43376.0,43375.0,0.035]
[1633056578672,0.82104963,43376.0,43375.0,0.035]
[1633056579673,0.79204963,43376.0,43375.0,0.035]
[1633056580073,0.44608663,43376.0,43375.0,0.035]
[1633056580273,0.47408663,43376.0,43375.0,0.035]
[1633056581675,0.44608663,43376.0,43375.0,0.035]
[1633056582281,0.47308663,43376.0,43375.0,0.035]
[1633056582684,0.33197863,43376.0,43375.0,0.035]
[1633056583281,0.04835702,43376.0,43375.0,0.035]
[1633056583682,0.10649731,43376.0,43375.0,0.035]
[1633056584280,0.13349731,43376.0,43375.0,0.035]
[1633056584684,0.04835702,43376.0,43375.0,0.035]
[1633056585685,0.10124359,43376.0,43375.0,0.035]
[1633056586086,0.29235159,43376.0,43375.0,0.035]
[1633056586482,0.31935159,43376.0,43375.0,0.035]
[1633056586688,0.23946502,43376.0,43375.0,0.035]
[1633056587684,0.21246502,43376.0,43375.0,0.035]
[1633056588484,0.23946502,43376.0,43375.0,0.035]
[1633056589687,0.21246502,43376.0,43375.0,0.035]
[1633056589884,0.02135702,43376.0,43375.0,0.035]
[1633056590485,0.03514366,43376.0,43375.0,0.035]
[1633056593688,0.02014366,43376.0,43375.0,0.035]
[1633056594489,0.05114366,43376.0,43375.0,0.035]
[1633056595689,0.02014366,43376.0,43375.0,0.035]
[1633056596493,0.04714366,43376.0,43375.0,0.035]
[1633056597690,0.02014366,43376.0,43375.0,0.035]
[1633056598493,0.04714366,43376.0,43375.0,0.035]
[1633056598694,0.05653826,43376.0,43375.0,0.035]
[1633056599693,0.02953826,43376.0,43375.0,0.035]
[1633056600300,0.33184706,43386.0,43375.0,0.035]
[1633056600503,0.02,43376.0,43375.0,0.035]
[1633056600701,0.04074641,43376.0,43375.0,0.264887]
[1633056600900,0.04074641,43376.0,43375.0,0.36335408]
[1633056601297,0.04074641,43376.0,43375.0,0.59392408]
[1633056601497,0.04074641,43376.0,43375.0,0.495457]
[1633056601702,0.02074641,43376.0,43375.0,0.495457]
[1633056601903,0.00127482,43386.0,43375.0,0.4959871]
[1633056602098,0.01941886,43383.0,43375.0,0.035]
[1633056602398,0.345905,43380.0,43375.0,0.035]
[1633056602599,0.02635043,43378.0,43375.0,0.035]
[1633056602797,0.02635043,43378.0,43376.0,0.229887]
[1633056603195,0.02635043,43378.0,43377.0,0.11568442]
[1633056603598,0.02635043,43378.0,43375.0,0.035]
[1633056604394,0.05635043,43378.0,43375.0,0.035]
[1633056604595,0.02642668,43377.0,43375.0,0.035]
[1633056604797,0.345929,43376.0,43375.0,0.035]
[1633056605002,0.61266233,43376.0,43375.0,0.035]
[1633056605203,0.93381092,43376.0,43375.0,0.035]
[1633056605402,0.98381092,43376.0,43375.0,0.035]
[1633056606002,0.86223401,43376.0,43375.0,0.035]
[1633056606202,0.86344731,43376.0,43375.0,0.035]
[1633056606403,1.25433164,43376.0,43375.0,0.035]
[1633056606999,1.06432013,43376.0,43375.0,0.035]
[1633056607400,1.01554731,43376.0,43375.0,0.035]
[1633056607800,0.98654731,43376.0,43375.0,0.035]
[1633056608404,1.01754731,43376.0,43375.0,0.035]
[1633056609802,0.98654731,43376.0,43375.0,0.0001]
[1633056610006,0.98654731,43376.0,43363.0,0.00044]
[1633056610007,0.75,43375.0,43363.0,0.00044]
[1633056610206,0.00129027,43366.0,43363.0,0.00044]
[1633056610406,0.12265027,43366.0,43363.0,0.00044]
[1633056610605,0.20493,43366.0,43363.0,0.00044]
[1633056610808,0.00457905,43365.0,43363.0,0.00044]
[1633056611407,0.00457905,43365.0,43364.0,0.00755234]
[1633056611612,0.396003,43366.0,43364.0,0.00755234]
[1633056612009,0.396003,43366.0,43363.0,0.00044]
[1633056612209,0.2306684,43365.0,43363.0,0.00044]
[1633056613416,0.06030291,43370.0,43364.0,1.1]
[1633056613610,0.95488441,43375.0,43365.0,0.01576626]
[1633056613611,0.9536,43375.0,43365.0,0.01576626]
[1633056613814,0.9536,43375.0,43368.0,0.07849479]
[1633056614008,0.191108,43374.0,43365.0,0.23449263]
[1633056614208,0.24129306,43372.0,43365.0,0.23449263]
[1633056614408,0.191108,43371.0,43365.0,0.27249263]
[1633056614808,0.191108,43371.0,43366.0,0.33524254]
[1633056615009,0.24129306,43372.0,43367.0,0.01530804]
[1633056615209,0.42175014,43371.0,43367.0,0.01530804]
[1633056616011,0.42175014,43371.0,43366.0,0.461242]
[1633056616410,0.43375014,43371.0,43367.0,0.037]
[1633056617011,0.43375014,43371.0,43368.0,0.01470232]
[1633056617411,0.43375014,43371.0,43368.0,0.01515226]
[1633056617811,0.42175014,43371.0,43368.0,0.01515226]
[1633056618468,0.42175014,43371.0,43368.0,0.05115226]
[1633056618469,0.43275014,43371.0,43368.0,0.05115226]
[1633056618669,0.43275014,43371.0,43369.0,0.01505742]
[1633056619269,0.202108,43371.0,43369.0,0.01505742]
[1633056619669,0.191108,43371.0,43369.0,0.01505742]
[1633056621070,0.199108,43371.0,43369.0,0.05105742]
[1633056621270,0.199108,43371.0,43370.0,0.01811761]
[1633056622272,0.191108,43371.0,43370.0,0.01811761]
[1633056622474,0.250108,43371.0,43370.0,0.05311761]
[1633056623477,0.250108,43371.0,43370.0,0.035]
[1633056623874,0.241108,43371.0,43366.0,0.807169]
[1633056624074,0.241108,43371.0,43367.0,0.01527577]
[1633056624473,0.201108,43371.0,43367.0,0.01527577]
[1633056625876,0.191108,43371.0,43367.0,0.01527577]
[1633056626475,0.204108,43371.0,43367.0,0.05227577]
[1633056626676,0.204108,43371.0,43368.0,0.01495713]
[1633056628081,0.204108,43371.0,43367.0,0.037]
[1633056628478,0.202108,43371.0,43368.0,0.036]
[1633056629283,0.202108,43371.0,43363.0,0.21635865]
[1633056629284,0.03447316,43369.0,43363.0,0.22209669]
[1633056629492,0.7512635,43364.0,43363.0,0.00044]
[1633056629686,0.46898226,43364.0,43363.0,0.00044]
[1633056629882,0.51898226,43364.0,43363.0,0.00044]
[1633056630084,0.52776771,43364.0,43363.0,0.00044]
[1633056630286,0.55086771,43364.0,43363.0,0.00044]
[1633056630482,0.57886771,43364.0,43363.0,0.00044]
[1633056630884,0.67886771,43364.0,43363.0,0.00044]
[1633056631481,0.67886771,43364.0,43363.0,0.00050763]
[1633056631881,0.40225695,43364.0,43363.0,0.00050763]
[1633056632489,0.30525695,43364.0,43363.0,0.00050763]
[1633056632884,0.4325407,43365.0,43363.0,0.02077126]
[1633056632885,0.05563713,43365.0,43363.0,0.02077126]
[1633056633082,0.0231,43364.0,43363.0,0.00050763]
[1633056634088,0.0231,43364.0,43363.0,0.00072763]
[1633056634090,0.0209,43364.0,43363.0,0.00072763]
[1633056634284,0.23635113,43365.0,43363.0,0.00072763]
[1633056634484,0.03,43364.0,43363.0,0.01972763]
[1633056635984,0.23635113,43365.0,43363.0,0.00072763]
[1633056636184,0.23635113,43365.0,43364.0,0.02000876]
[1633056636185,0.00563713,43365.0,43364.0,0.02000876]
[1633056636385,0.00563713,43365.0,43363.0,0.00072763]
[1633056636588,0.03563713,43365.0,43363.0,0.01972763]
[1633056636991,0.03563713,43365.0,43352.0,0.23156773]
[1633056636992,0.2238788,43353.0,43349.0,0.46482917]
[1633056637195,0.2238788,43353.0,43347.0,2.47427903]
[1633056637196,0.41629544,43349.0,43347.0,2.47427903]
[1633056637393,1.31616106,43349.0,43347.0,2.47427903]
[1633056637592,1.00147382,43349.0,43347.0,2.47427903]
[1633056637789,1.02457382,43349.0,43347.0,0.00088]
[1633056637991,1.2041596,43349.0,43347.0,0.00088]
[1633056638588,1.2361596,43349.0,43347.0,0.00088]
[1633056639688,1.15657382,43349.0,43347.0,0.00088]
[1633056639892,0.4467777,43349.0,43347.0,0.00088]
[1633056640494,0.4827777,43349.0,43347.0,0.00088]
[1633056640699,0.4827777,43349.0,43347.0,0.08318044]
[1633056640891,0.47539544,43349.0,43348.0,0.02072258]
[1633056641090,0.47539544,43349.0,43348.0,0.00088]
[1633056641491,0.45229544,43349.0,43348.0,0.00088]
[1633056641890,0.45229544,43349.0,43348.0,0.00095785]
[1633056641891,0.41629544,43349.0,43348.0,0.00095785]
[1633056642495,0.45229544,43349.0,43348.0,0.00095785]
[1633056643892,0.41629544,43349.0,43348.0,0.00095785]
[1633056644492,0.45429544,43349.0,43348.0,0.00095785]
[1633056645895,0.41629544,43349.0,43348.0,0.00095785]
[1633056646698,0.19712835,43341.0,43339.0,0.00169033]
[1633056646903,0.19712835,43341.0,43328.0,0.0077293]
[1633056646904,1.1002,43328.0,43327.0,0.0006]
[1633056647120,1.2460531,43328.0,43327.0,0.0006]
[1633056647299,1.92693003,43328.0,43327.0,0.0006]
[1633056647706,1.92693003,43328.0,43327.0,0.0004457]
[1633056647903,1.92693003,43328.0,43322.0,0.00062]
[1633056647904,1.44762817,43327.0,43322.0,0.00062]
[1633056648104,1.6868487,43324.0,43322.0,0.00062]
[1633056648303,1.095,43323.0,43320.0,0.80486]
[1633056648497,1.16387404,43321.0,43320.0,0.80486]
[1633056648700,1.27185061,43321.0,43320.0,0.342857]
[1633056648899,1.27185061,43321.0,43314.0,0.00089302]
[1633056648900,1.1,43319.0,43314.0,0.00089302]
[1633056649097,0.70605744,43318.0,43314.0,0.00089302]
[1633056649499,0.65,43317.0,43311.0,0.0406]
[1633056649702,0.5765,43315.0,43311.0,0.0056]
[1633056649898,0.07341787,43312.0,43311.0,0.0056]
[1633056650099,0.09651787,43312.0,43311.0,0.22772801]
[1633056650301,0.02430685,43312.0,43311.0,0.22772801]
[1633056650499,0.02430685,43312.0,43311.0,0.0056]
[1633056650706,0.05430685,43312.0,43311.0,0.0056]
[1633056650904,0.05673062,43312.0,43311.0,0.0056]
[1633056651500,0.05673062,43312.0,43311.0,0.24108967]
[1633056651899,0.02673062,43312.0,43311.0,0.0056]
[1633056652099,0.67673062,43312.0,43311.0,0.0006]
[1633056652298,0.02673062,43312.0,43311.0,0.0006]
[1633056652498,0.12673062,43312.0,43311.0,0.000713]
[1633056652699,0.15273062,43312.0,43311.0,0.000713]
[1633056653300,0.15030685,43312.0,43311.0,0.02069437]
[1633056653900,0.12430685,43312.0,43311.0,0.000713]
[1633056654699,0.15430685,43312.0,43311.0,0.000713]
[1633056655305,0.1531,43312.0,43311.0,0.000713]
[1633056655504,0.0531,43312.0,43311.0,0.000713]
[1633056656305,0.0231,43312.0,43311.0,0.09510296]
[1633056656702,0.0601,43312.0,43311.0,0.09510296]
[1633056656903,0.0601,43312.0,43311.0,0.000713]
[1633056657708,0.23096994,43317.0,43311.0,0.000713]
[1633056657709,0.25406994,43317.0,43311.0,0.223913]
[1633056657911,3.09734575,43325.0,43313.0,0.03361378]
[1633056657912,0.00124575,43325.0,43313.0,0.03361378]
[1633056658109,5.04010159,43329.0,43314.0,0.01324917]
[1633056658307,0.0002,43328.0,43314.0,0.01324917]
[1633056658509,0.0002,43328.0,43317.0,0.18751389]
[1633056658510,0.346323,43322.0,43317.0,0.18751389]
[1633056658711,0.346323,43322.0,43318.0,0.10848348]
[1633056658910,0.00129982,43321.0,43318.0,0.01920604]
[1633056659306,0.00129982,43321.0,43314.0,0.019]
[1633056659507,0.00129982,43321.0,43315.0,0.0099041]
[1633056659907,0.00129982,43321.0,43314.0,0.019]
[1633056660106,0.23221782,43321.0,43314.0,0.019]
[1633056660307,0.346403,43318.0,43314.0,0.019]
[1633056660508,0.57734,43318.0,43313.0,0.12499548]
[1633056660706,0.230937,43318.0,43314.0,0.05071659]
[1633056661109,0.46187207,43318.0,43315.0,0.03027792]
[1633056661309,0.46187207,43318.0,43316.0,0.22411808]
[1633056661509,0.46187207,43318.0,43317.0,0.02134091]
[1633056662109,0.46187207,43318.0,43317.0,0.24434157]
[1633056662311,0.23093507,43318.0,43317.0,0.24434157]
[1633056662509,0.461871,43319.0,43317.0,0.24434157]
[1633056662711,0.461871,43319.0,43318.0,0.02120622]
[1633056662973,0.461871,43319.0,43318.0,0.2831267]
[1633056663311,0.230905,43324.0,43319.0,1.1]
[1633056663519,0.0002,43328.0,43319.0,1.1]
[1633056663520,0.0002,43328.0,43321.0,0.0324251]
[1633056663718,0.0002,43328.0,43324.0,0.0267924]
[1633056663914,0.0002,43328.0,43325.0,0.0231]
[1633056664113,0.0002,43328.0,43326.0,0.01428508]
[1633056664318,0.0002,43328.0,43327.0,0.0231]
[1633056664517,0.0002,43328.0,43327.0,0.03113198]
[1633056664710,0.376472,43328.0,43327.0,0.03113198]
[1633056665711,0.376472,43328.0,43327.0,0.02079001]
[1633056665921,0.55898065,43334.0,43327.0,0.02079001]
[1633056665922,0.00122816,43334.0,43329.0,0.17349284]
[1633056666119,0.577226,43341.0,43332.0,0.02837513]
[1633056666318,0.1998,43345.0,43334.0,0.04220164]